[Event "November 21 Early 2023"]
[Site "https://www.chess.com"]
[Date "2023.11.21"]
[Round "8"]
[White "danshev16"]
[Black "Rosenberg, Evan S"]
[Result "1/2-1/2"]
[Board "118"]
[TimeControl "180+1"]
[BlackFideId "2019299"]
[WhiteElo "2521"]
[BlackElo "2432"]
[BlackTeam "USA"]
[WhiteClock "0:00:40"]
[BlackClock "0:00:04"]

1. d3 {[%clk 0:03:00]}  e5 {[%clk 0:02:58]} 2. c3 {[%clk 0:03:01]}  Nf6 {[%clk 0:02:54]} 3. Nd2 {[%clk 0:03:02]}  Bc5 {[%clk 0:02:48]} 4. h3 {[%clk 0:03:02]}  O-O {[%clk 0:02:47]} 5. g4 {[%clk 0:03:03]}  d5 {[%clk 0:02:37]} 6. Bg2 {[%clk 0:03:02]}  c6 {[%clk 0:02:34]} 7. Nf1 {[%clk 0:03:01]}  h6 {[%clk 0:02:26]} 8. Ng3 {[%clk 0:03:01]}  Re8 {[%clk 0:02:24]} 9. Nf3 {[%clk 0:02:51]}  e4 {[%clk 0:02:17]} 10. Nd4 {[%clk 0:02:51]}  Bxd4 {[%clk 0:01:58]} 11. cxd4 {[%clk 0:02:51]}  Qa5+ {[%clk 0:01:19]} 12. Qd2 {[%clk 0:02:33]}  Qxd2+ {[%clk 0:01:16]} 13. Kxd2 {[%clk 0:02:33]}  exd3 {[%clk 0:01:13]} 14. Kxd3 {[%clk 0:02:32]}  Na6 {[%clk 0:01:14]} 15. a3 {[%clk 0:02:31]}  Nc7 {[%clk 0:01:14]} 16. f3 {[%clk 0:02:11]}  b6 {[%clk 0:01:13]} 17. e4 {[%clk 0:02:10]}  Ba6+ {[%clk 0:01:12]} 18. Kc2 {[%clk 0:02:11]}  dxe4 {[%clk 0:00:57]} 19. fxe4 {[%clk 0:02:08]}  Rad8 {[%clk 0:00:57]} 20. Be3 {[%clk 0:02:03]}  c5 {[%clk 0:00:36]} 21. d5 {[%clk 0:01:43]}  Ncxd5 {[%clk 0:00:35]} 22. Bxh6 {[%clk 0:01:33]}  gxh6 {[%clk 0:00:25]} 23. exd5 {[%clk 0:01:32]}  Nxd5 {[%clk 0:00:25]} 24. Bxd5 {[%clk 0:01:32]}  Rxd5 {[%clk 0:00:24]} 25. Rad1 {[%clk 0:01:22]}  Rxd1 {[%clk 0:00:19]} 26. Rxd1 {[%clk 0:01:23]}  Re3 {[%clk 0:00:17]} 27. Nf5 {[%clk 0:01:21]}  Rxh3 {[%clk 0:00:16]} 28. Rd8+ {[%clk 0:01:18]}  Kh7 {[%clk 0:00:15]} 29. Rd7 {[%clk 0:01:19]}  Kg6 {[%clk 0:00:14]} 30. Rxa7 {[%clk 0:01:16]}  Bd3+ {[%clk 0:00:13]} 31. Kd2 {[%clk 0:01:15]}  Bxf5 {[%clk 0:00:14]} 32. gxf5+ {[%clk 0:01:16]}  Kf6 {[%clk 0:00:13]} 33. Rb7 {[%clk 0:01:16]}  Rb3 {[%clk 0:00:11]} 34. Kc2 {[%clk 0:01:16]}  Rb5 {[%clk 0:00:11]} 35. Kc3 {[%clk 0:01:05]}  c4 {[%clk 0:00:11]} 36. a4 {[%clk 0:00:56]}  Rb3+ {[%clk 0:00:09]} 37. Kxc4 {[%clk 0:00:56]}  Rxb2 {[%clk 0:00:10]} 38. a5 {[%clk 0:00:57]}  Kxf5 {[%clk 0:00:05]} 39. Rxb6 {[%clk 0:00:56]}  Ra2 {[%clk 0:00:05]} 40. Rxh6 {[%clk 0:00:55]}  Kf4 {[%clk 0:00:02]} 41. Rf6+ {[%clk 0:00:49]}  Ke5 {[%clk 0:00:02]} 42. Rxf7 {[%clk 0:00:36]}  Rxa5 {[%clk 0:00:02]} 43. Rh7 {[%clk 0:00:36]}  Ra4+ {[%clk 0:00:02]} 44. Kb5 {[%clk 0:00:36]}  Rf4 {[%clk 0:00:02]} 45. Kc5 {[%clk 0:00:37]}  Rf1 {[%clk 0:00:01]} 46. Re7+ {[%clk 0:00:38]}  Kf6 {[%clk 0:00:01]} 47. Re8 {[%clk 0:00:38]}  Rf5+ {[%clk 0:00:02]} 48. Kd6 {[%clk 0:00:39]}  Ra5 {[%clk 0:00:02]} 49. Rf8+ {[%clk 0:00:40]}  Kg7 {[%clk 0:00:02]} 50. Rf1 {[%clk 0:00:40]}  Ra6+ {[%clk 0:00:02]} 51. Ke7 {[%clk 0:00:41]}  Ra7+ {[%clk 0:00:02]} 52. Ke6 {[%clk 0:00:42]}  Ra6+ {[%clk 0:00:03]} 53. Ke5 {[%clk 0:00:42]}  Ra5+ {[%clk 0:00:03]} 54. Kd6 {[%clk 0:00:43]}  Ra6+ {[%clk 0:00:04]} 55. Kc5 {[%clk 0:00:43]}  Rf6 {[%clk 0:00:04]} 56. Rxf6 {[%clk 0:00:40]}  Kxf6 {[%clk 0:00:04]} 1/2-1/2

[Event "November 21 Early 2023"]
[Site "https://www.chess.com"]
[Date "2023.11.21"]
[Round "8"]
[White "Rios Escobar, Adan"]
[Black "vishwa_vijeta"]
[Result "0-1"]
[Board "120"]
[TimeControl "180+1"]
[WhiteFideId "3403645"]
[WhiteElo "2426"]
[BlackElo "2513"]
[WhiteTeam "CHI"]
[WhiteClock "0:00:20"]
[BlackClock "0:00:53"]

1. d4 {[%clk 0:02:59]}  Nf6 {[%clk 0:02:58]} 2. g3 {[%clk 0:02:59]}  g6 {[%clk 0:02:58]} 3. Bg2 {[%clk 0:03:00]}  d5 {[%clk 0:02:58]} 4. Nf3 {[%clk 0:02:58]}  Bg7 {[%clk 0:02:58]} 5. c4 {[%clk 0:02:59]}  c6 {[%clk 0:02:57]} 6. cxd5 {[%clk 0:02:55]}  cxd5 {[%clk 0:02:57]} 7. Nc3 {[%clk 0:02:55]}  O-O {[%clk 0:02:56]} 8. Ne5 {[%clk 0:02:53]}  Nc6 {[%clk 0:02:54]} 9. O-O {[%clk 0:02:49]}  e6 {[%clk 0:02:53]} 10. Nxc6 {[%clk 0:02:47]}  bxc6 {[%clk 0:02:53]} 11. Bf4 {[%clk 0:02:47]}  Nd7 {[%clk 0:02:49]} 12. Na4 {[%clk 0:02:43]}  Ba6 {[%clk 0:02:43]} 13. Rc1 {[%clk 0:02:42]}  Rc8 {[%clk 0:02:42]} 14. Qd2 {[%clk 0:02:39]}  Re8 {[%clk 0:02:39]} 15. Rfd1 {[%clk 0:02:25]}  Qe7 {[%clk 0:01:58]} 16. b4 {[%clk 0:02:14]}  Bxd4 {[%clk 0:01:47]} 17. Qxd4 {[%clk 0:02:10]}  e5 {[%clk 0:01:46]} 18. Qxa7 {[%clk 0:01:53]}  Ra8 {[%clk 0:01:45]} 19. Bg5 {[%clk 0:01:31]}  Rxa7 {[%clk 0:01:21]} 20. Bxe7 {[%clk 0:01:30]}  Rxe7 {[%clk 0:01:21]} 21. Rd2 {[%clk 0:01:17]}  Bc4 {[%clk 0:01:14]} 22. Nb2 {[%clk 0:01:06]}  Bb5 {[%clk 0:01:00]} 23. a4 {[%clk 0:01:03]}  Bxa4 {[%clk 0:01:00]} 24. Nxa4 {[%clk 0:01:03]}  Rxa4 {[%clk 0:01:01]} 25. Rxc6 {[%clk 0:01:04]}  d4 {[%clk 0:01:01]} 26. Rc8+ {[%clk 0:00:45]}  Kg7 {[%clk 0:01:00]} 27. Bc6 {[%clk 0:00:37]}  Ra1+ {[%clk 0:00:58]} 28. Kg2 {[%clk 0:00:37]}  Nb6 {[%clk 0:00:57]} 29. b5 {[%clk 0:00:35]}  Nxc8 {[%clk 0:00:57]} 30. Rb2 {[%clk 0:00:32]}  Nb6 {[%clk 0:00:56]} 31. Be4 {[%clk 0:00:30]}  Rc7 {[%clk 0:00:56]} 32. Bc6 {[%clk 0:00:30]}  f5 {[%clk 0:00:55]} 33. h4 {[%clk 0:00:29]}  e4 {[%clk 0:00:55]} 34. h5 {[%clk 0:00:29]}  Nc4 {[%clk 0:00:51]} 35. Rb4 {[%clk 0:00:28]}  d3 {[%clk 0:00:51]} 36. exd3 {[%clk 0:00:27]}  exd3 {[%clk 0:00:52]} 37. Rxc4 {[%clk 0:00:26]}  d2 {[%clk 0:00:52]} 38. b6 {[%clk 0:00:26]}  d1=Q {[%clk 0:00:53]} 39. Kh2 {[%clk 0:00:21]}  Rxc6 {[%clk 0:00:52]} 40. Rxc6 {[%clk 0:00:20]}  Qh1# {[%clk 0:00:53]} 0-1

[Event "November 21 Early 2023"]
[Site "https://www.chess.com"]
[Date "2023.11.21"]
[Round "8"]
[White "Hajiyev, Kanan"]
[Black "Darmanin, Jake"]
[Result "1-0"]
[Board "121"]
[TimeControl "180+1"]
[WhiteFideId "13404148"]
[BlackFideId "5601061"]
[WhiteElo "2102"]
[BlackElo "2119"]
[WhiteTeam "AZE"]
[BlackTeam "MLT"]
[WhiteClock "0:00:07"]
[BlackClock "0:00:28"]

1. d4 {[%clk 0:03:00]}  Nf6 {[%clk 0:02:58]} 2. Nf3 {[%clk 0:03:01]}  e6 {[%clk 0:02:58]} 3. c4 {[%clk 0:03:02]}  d5 {[%clk 0:02:58]} 4. Nc3 {[%clk 0:03:03]}  Bb4 {[%clk 0:02:53]} 5. Qc2 {[%clk 0:03:00]}  O-O {[%clk 0:02:52]} 6. Bg5 {[%clk 0:02:58]}  c5 {[%clk 0:02:50]} 7. a3 {[%clk 0:02:50]}  Bxc3+ {[%clk 0:02:49]} 8. bxc3 {[%clk 0:02:51]}  cxd4 {[%clk 0:02:47]} 9. cxd4 {[%clk 0:02:50]}  dxc4 {[%clk 0:02:42]} 10. e4 {[%clk 0:02:48]}  h6 {[%clk 0:02:42]} 11. Bh4 {[%clk 0:02:47]}  Nc6 {[%clk 0:02:37]} 12. O-O-O {[%clk 0:02:38]}  b5 {[%clk 0:02:25]} 13. e5 {[%clk 0:02:38]}  g5 {[%clk 0:02:25]} 14. Nxg5 {[%clk 0:02:38]}  hxg5 {[%clk 0:02:13]} 15. Bxg5 {[%clk 0:02:39]}  Qa5 {[%clk 0:01:50]} 16. Bxf6 {[%clk 0:02:24]}  Qxa3+ {[%clk 0:01:49]} 17. Qb2 {[%clk 0:02:12]}  Qxb2+ {[%clk 0:01:44]} 18. Kxb2 {[%clk 0:02:13]}  Kh7 {[%clk 0:01:34]} 19. h4 {[%clk 0:01:58]}  Rg8 {[%clk 0:01:34]} 20. Rg1 {[%clk 0:01:35]}  Rg4 {[%clk 0:01:33]} 21. d5 {[%clk 0:01:27]}  exd5 {[%clk 0:01:27]} 22. Rxd5 {[%clk 0:01:28]}  Be6 {[%clk 0:01:23]} 23. Rxb5 {[%clk 0:01:25]}  Nd4 {[%clk 0:01:16]} 24. Rb7 {[%clk 0:01:09]}  Rc8 {[%clk 0:01:01]} 25. Kc3 {[%clk 0:01:01]}  a6 {[%clk 0:00:59]} 26. g3 {[%clk 0:00:36]}  Nb5+ {[%clk 0:00:58]} 27. Kb4 {[%clk 0:00:26]}  c3+ {[%clk 0:00:58]} 28. Ka5 {[%clk 0:00:26]}  c2 {[%clk 0:00:47]} 29. Bd3+ {[%clk 0:00:26]}  Kg8 {[%clk 0:00:48]} 30. Rc1 {[%clk 0:00:14]}  Bb3 {[%clk 0:00:44]} 31. h5 {[%clk 0:00:14]}  Ra4+ {[%clk 0:00:36]} 32. Kb6 {[%clk 0:00:14]}  Nd4 {[%clk 0:00:35]} 33. h6 {[%clk 0:00:11]}  Rb4+ {[%clk 0:00:34]} 34. Kxa6 {[%clk 0:00:08]}  Ra8+ {[%clk 0:00:32]} 35. Ra7 {[%clk 0:00:07]}  Ra4+ {[%clk 0:00:30]} 36. Kb6 {[%clk 0:00:07]}  R4xa7 {[%clk 0:00:30]} 37. h7+ {[%clk 0:00:07]}  Kf8 {[%clk 0:00:28]} 38. h8=Q# {[%clk 0:00:07]} 1-0

[Event "November 21 Early 2023"]
[Site "https://www.chess.com"]
[Date "2023.11.21"]
[Round "8"]
[White "Kochiev, Ivan"]
[Black "Estrada Nieto, Julian"]
[Result "0-1"]
[Board "122"]
[TimeControl "180+1"]
[WhiteFideId "2917890"]
[BlackFideId "5101018"]
[WhiteElo "2285"]
[BlackElo "2161"]
[WhiteTeam "BUL"]
[BlackTeam "ESP"]
[WhiteClock "0:00:00"]
[BlackClock "0:00:48"]

1. e4 {[%clk 0:03:00]}  e5 {[%clk 0:02:56]} 2. Nf3 {[%clk 0:03:00]}  Nc6 {[%clk 0:02:57]} 3. d4 {[%clk 0:02:57]}  exd4 {[%clk 0:02:57]} 4. Bc4 {[%clk 0:02:58]}  Bc5 {[%clk 0:02:56]} 5. c3 {[%clk 0:02:57]}  d6 {[%clk 0:02:56]} 6. cxd4 {[%clk 0:02:57]}  Bb6 {[%clk 0:02:57]} 7. h3 {[%clk 0:02:56]}  Nf6 {[%clk 0:02:57]} 8. Nc3 {[%clk 0:02:56]}  O-O {[%clk 0:02:57]} 9. d5 {[%clk 0:02:36]}  Ne5 {[%clk 0:02:56]} 10. Be2 {[%clk 0:02:31]}  Re8 {[%clk 0:02:52]} 11. O-O {[%clk 0:02:30]}  h6 {[%clk 0:02:44]} 12. Nxe5 {[%clk 0:02:30]}  Rxe5 {[%clk 0:02:42]} 13. Bd3 {[%clk 0:02:21]}  Bd7 {[%clk 0:02:38]} 14. Kh1 {[%clk 0:02:18]}  Rh5 {[%clk 0:02:26]} 15. Be2 {[%clk 0:02:03]}  Rh4 {[%clk 0:02:21]} 16. g3 {[%clk 0:01:23]}  Rxh3+ {[%clk 0:02:17]} 17. Kg2 {[%clk 0:01:24]}  Qe7 {[%clk 0:02:14]} 18. Qd3 {[%clk 0:01:16]}  Ng4 {[%clk 0:02:04]} 19. Bxg4 {[%clk 0:01:02]}  Bxg4 {[%clk 0:02:04]} 20. f3 {[%clk 0:01:00]}  Bd7 {[%clk 0:02:04]} 21. Ne2 {[%clk 0:00:43]}  a6 {[%clk 0:01:59]} 22. Be3 {[%clk 0:00:30]}  Rh5 {[%clk 0:01:50]} 23. Rac1 {[%clk 0:00:23]}  Bh3+ {[%clk 0:01:48]} 24. Kf2 {[%clk 0:00:19]}  Bxf1 {[%clk 0:01:46]} 25. Rxf1 {[%clk 0:00:20]}  Qe5 {[%clk 0:01:28]} 26. Kg2 {[%clk 0:00:15]}  Qxb2 {[%clk 0:01:26]} 27. Rf2 {[%clk 0:00:14]}  Bxe3 {[%clk 0:01:23]} 28. Qxe3 {[%clk 0:00:15]}  Qb6 {[%clk 0:01:23]} 29. Nd4 {[%clk 0:00:06]}  Re8 {[%clk 0:01:19]} 30. g4 {[%clk 0:00:06]}  Rxd5 {[%clk 0:01:18]} 31. Nf5 {[%clk 0:00:01]}  Qxe3 {[%clk 0:01:17]} 32. Nxe3 {[%clk 0:00:02]}  Rd3 {[%clk 0:01:16]} 33. Nd5 {[%clk 0:00:02]}  c6 {[%clk 0:01:12]} 34. Nf4 {[%clk 0:00:02]}  Ra3 {[%clk 0:01:11]} 35. Rd2 {[%clk 0:00:02]}  Rd8 {[%clk 0:01:08]} 36. Rb2 {[%clk 0:00:03]}  b5 {[%clk 0:01:08]} 37. Rd2 {[%clk 0:00:02]}  c5 {[%clk 0:01:07]} 38. Nd5 {[%clk 0:00:03]}  b4 {[%clk 0:01:06]} 39. Ne7+ {[%clk 0:00:02]}  Kf8 {[%clk 0:01:03]} 40. Nf5 {[%clk 0:00:02]}  c4 {[%clk 0:00:57]} 41. Rd4 {[%clk 0:00:02]}  Rxa2+ {[%clk 0:00:56]} 42. Kg3 {[%clk 0:00:02]}  Rc2 {[%clk 0:00:50]} 43. e5 {[%clk 0:00:00]}  b3 {[%clk 0:00:48]} 0-1

[Event "November 21 Early 2023"]
[Site "https://www.chess.com"]
[Date "2023.11.21"]
[Round "8"]
[White "Kozelov, Roman"]
[Black "Kanyamarala, Trisha"]
[Result "1-0"]
[Board "125"]
[TimeControl "180+1"]
[WhiteFideId "14133377"]
[BlackFideId "45004722"]
[WhiteElo "2149"]
[BlackElo "2078"]
[WhiteTeam "UKR"]
[BlackTeam "IRL"]
[WhiteClock "0:01:26"]
[BlackClock "0:00:54"]

1. e4 {[%clk 0:03:00]}  c5 {[%clk 0:02:59]} 2. Nf3 {[%clk 0:02:58]}  d6 {[%clk 0:02:59]} 3. Bb5+ {[%clk 0:02:59]}  Bd7 {[%clk 0:02:58]} 4. a4 {[%clk 0:02:59]}  Nf6 {[%clk 0:02:56]} 5. Nc3 {[%clk 0:02:59]}  a6 {[%clk 0:02:52]} 6. Bc4 {[%clk 0:02:58]}  e6 {[%clk 0:02:51]} 7. O-O {[%clk 0:02:58]}  Nc6 {[%clk 0:02:51]} 8. d4 {[%clk 0:02:58]}  cxd4 {[%clk 0:02:50]} 9. Nxd4 {[%clk 0:02:59]}  Be7 {[%clk 0:02:50]} 10. Be3 {[%clk 0:02:57]}  e5 {[%clk 0:02:46]} 11. Nxc6 {[%clk 0:02:56]}  bxc6 {[%clk 0:02:45]} 12. a5 {[%clk 0:02:52]}  O-O {[%clk 0:02:39]} 13. Qe2 {[%clk 0:02:48]}  Be6 {[%clk 0:02:37]} 14. Bxa6 {[%clk 0:02:46]}  d5 {[%clk 0:02:35]} 15. Bb6 {[%clk 0:02:46]}  Qd7 {[%clk 0:02:34]} 16. exd5 {[%clk 0:02:46]}  cxd5 {[%clk 0:02:34]} 17. Bb5 {[%clk 0:02:45]}  Qd6 {[%clk 0:02:34]} 18. Rfd1 {[%clk 0:02:37]}  e4 {[%clk 0:02:22]} 19. h3 {[%clk 0:02:25]}  Bd8 {[%clk 0:02:15]} 20. Bd4 {[%clk 0:02:08]}  Bc7 {[%clk 0:02:13]} 21. g3 {[%clk 0:02:03]}  Nd7 {[%clk 0:01:43]} 22. Nxe4 {[%clk 0:01:58]}  dxe4 {[%clk 0:01:40]} 23. Bxg7 {[%clk 0:01:58]}  Qe7 {[%clk 0:01:31]} 24. Bc3 {[%clk 0:01:46]}  Bxh3 {[%clk 0:01:14]} 25. Qh5 {[%clk 0:01:40]}  Be6 {[%clk 0:01:08]} 26. Bxd7 {[%clk 0:01:36]}  Bxd7 {[%clk 0:01:07]} 27. Rxd7 {[%clk 0:01:35]}  Qe6 {[%clk 0:00:57]} 28. Qg5+ {[%clk 0:01:28]}  Qg6 {[%clk 0:00:57]} 29. Qxg6+ {[%clk 0:01:28]}  hxg6 {[%clk 0:00:57]} 30. Rxc7 {[%clk 0:01:28]}  Rfe8 {[%clk 0:00:54]} 31. Re1 {[%clk 0:01:26]} 1-0

[Event "November 21 Early 2023"]
[Site "https://www.chess.com"]
[Date "2023.11.21"]
[Round "8"]
[White "MIss_MIaMI"]
[Black "Toktomushev, Teimur"]
[Result "1-0"]
[Board "129"]
[TimeControl "180+1"]
[BlackFideId "14176726"]
[WhiteElo "2372"]
[BlackElo "2198"]
[BlackTeam "UKR"]
[WhiteClock "0:00:22"]
[BlackClock "0:00:02"]

1. e4 {[%clk 0:02:56]}  c5 {[%clk 0:02:59]} 2. Nf3 {[%clk 0:02:56]}  e6 {[%clk 0:02:58]} 3. d4 {[%clk 0:02:56]}  cxd4 {[%clk 0:02:59]} 4. c3 {[%clk 0:02:56]}  dxc3 {[%clk 0:02:58]} 5. Nxc3 {[%clk 0:02:57]}  Nc6 {[%clk 0:02:59]} 6. Bc4 {[%clk 0:02:58]}  Bb4 {[%clk 0:02:58]} 7. O-O {[%clk 0:02:55]}  Nge7 {[%clk 0:02:59]} 8. Nb5 {[%clk 0:02:48]}  d5 {[%clk 0:02:50]} 9. exd5 {[%clk 0:02:47]}  exd5 {[%clk 0:02:51]} 10. Bd3 {[%clk 0:02:46]}  a6 {[%clk 0:02:39]} 11. Nbd4 {[%clk 0:02:34]}  Nxd4 {[%clk 0:02:17]} 12. Nxd4 {[%clk 0:02:35]}  O-O {[%clk 0:02:16]} 13. Be3 {[%clk 0:02:10]}  Ng6 {[%clk 0:01:43]} 14. Rc1 {[%clk 0:02:06]}  Re8 {[%clk 0:01:34]} 15. Bb1 {[%clk 0:02:02]}  Bd7 {[%clk 0:01:22]} 16. Nc2 {[%clk 0:01:42]}  Be7 {[%clk 0:01:04]} 17. Qxd5 {[%clk 0:01:40]}  Bc6 {[%clk 0:01:01]} 18. Qh5 {[%clk 0:01:26]}  Bf6 {[%clk 0:00:55]} 19. Rfd1 {[%clk 0:01:21]}  Qe7 {[%clk 0:00:48]} 20. Nd4 {[%clk 0:01:18]}  Be4 {[%clk 0:00:44]} 21. Nf5 {[%clk 0:01:13]}  Bxf5 {[%clk 0:00:14]} 22. Bxf5 {[%clk 0:01:14]}  Bxb2 {[%clk 0:00:15]} 23. Rb1 {[%clk 0:01:10]}  Bf6 {[%clk 0:00:09]} 24. Rd7 {[%clk 0:01:05]}  Qa3 {[%clk 0:00:04]} 25. Rbxb7 {[%clk 0:00:37]}  Rxe3 {[%clk 0:00:03]} 26. fxe3 {[%clk 0:00:37]}  Qxe3+ {[%clk 0:00:03]} 27. Kf1 {[%clk 0:00:36]}  Rc8 {[%clk 0:00:02]} 28. Rd1 {[%clk 0:00:26]}  Rc1 {[%clk 0:00:02]} 29. Rb8+ {[%clk 0:00:24]}  Nf8 {[%clk 0:00:02]} 30. Qxh7# {[%clk 0:00:22]} 1-0

[Event "November 21 Early 2023"]
[Site "https://www.chess.com"]
[Date "2023.11.21"]
[Round "8"]
[White "Ongut, Tamas Gunes"]
[Black "Ovezdurdyyeva, Jemal"]
[Result "1/2-1/2"]
[Board "130"]
[TimeControl "180+1"]
[WhiteFideId "770280"]
[BlackFideId "14001888"]
[WhiteElo "2148"]
[BlackElo "2086"]
[WhiteTeam "HUN"]
[BlackTeam "TKM"]
[WhiteClock "0:00:08"]
[BlackClock "0:00:12"]

1. e3 {[%clk 0:02:56]}  d6 {[%clk 0:02:58]} 2. f4 {[%clk 0:02:55]}  Nf6 {[%clk 0:02:58]} 3. Nf3 {[%clk 0:02:55]}  g6 {[%clk 0:02:58]} 4. g3 {[%clk 0:02:55]}  Bg7 {[%clk 0:02:58]} 5. Bg2 {[%clk 0:02:55]}  O-O {[%clk 0:02:59]} 6. O-O {[%clk 0:02:56]}  Nc6 {[%clk 0:02:58]} 7. d4 {[%clk 0:02:52]}  e5 {[%clk 0:02:53]} 8. d5 {[%clk 0:02:51]}  Ne7 {[%clk 0:02:43]} 9. Nc3 {[%clk 0:02:38]}  exf4 {[%clk 0:02:20]} 10. gxf4 {[%clk 0:02:35]}  Bf5 {[%clk 0:02:16]} 11. Nd4 {[%clk 0:02:33]}  Bg4 {[%clk 0:02:15]} 12. Qe1 {[%clk 0:02:33]}  Qd7 {[%clk 0:02:02]} 13. Qh4 {[%clk 0:02:08]}  c5 {[%clk 0:01:53]} 14. dxc6 {[%clk 0:02:06]}  bxc6 {[%clk 0:01:53]} 15. h3 {[%clk 0:02:02]}  c5 {[%clk 0:01:39]} 16. hxg4 {[%clk 0:02:01]}  cxd4 {[%clk 0:01:39]} 17. exd4 {[%clk 0:02:00]}  Nxg4 {[%clk 0:01:39]} 18. Ne2 {[%clk 0:01:53]}  Rac8 {[%clk 0:01:31]} 19. c3 {[%clk 0:01:52]}  h5 {[%clk 0:01:32]} 20. Ng3 {[%clk 0:01:33]}  Nf5 {[%clk 0:01:10]} 21. Nxf5 {[%clk 0:01:31]}  Qxf5 {[%clk 0:01:11]} 22. Qg5 {[%clk 0:01:27]}  Qd3 {[%clk 0:01:07]} 23. f5 {[%clk 0:01:25]}  Qg3 {[%clk 0:01:06]} 24. Bf4 {[%clk 0:01:24]}  Qd3 {[%clk 0:00:58]} 25. fxg6 {[%clk 0:01:23]}  fxg6 {[%clk 0:00:57]} 26. Rad1 {[%clk 0:01:11]}  Qc2 {[%clk 0:00:42]} 27. Rd2 {[%clk 0:01:04]}  Qf5 {[%clk 0:00:36]} 28. Qxf5 {[%clk 0:01:03]}  Rxf5 {[%clk 0:00:37]} 29. Be4 {[%clk 0:01:03]}  Rf6 {[%clk 0:00:35]} 30. Rg2 {[%clk 0:00:58]}  Rcf8 {[%clk 0:00:34]} 31. Bd5+ {[%clk 0:00:47]}  Kh7 {[%clk 0:00:33]} 32. a4 {[%clk 0:00:16]}  Rxf4 {[%clk 0:00:32]} 33. Rxf4 {[%clk 0:00:17]}  Rxf4 {[%clk 0:00:32]} 34. Re2 {[%clk 0:00:16]}  Rf5 {[%clk 0:00:28]} 35. Be4 {[%clk 0:00:15]}  Ra5 {[%clk 0:00:29]} 36. b3 {[%clk 0:00:15]}  Rg5 {[%clk 0:00:29]} 37. Kh1 {[%clk 0:00:14]}  Nf6 {[%clk 0:00:27]} 38. Bf3 {[%clk 0:00:14]}  d5 {[%clk 0:00:26]} 39. c4 {[%clk 0:00:12]}  Ne4 {[%clk 0:00:23]} 40. Bxe4 {[%clk 0:00:11]}  dxe4 {[%clk 0:00:23]} 41. Rxe4 {[%clk 0:00:12]}  Rg3 {[%clk 0:00:24]} 42. Re7 {[%clk 0:00:09]}  Rxb3 {[%clk 0:00:21]} 43. Rxa7 {[%clk 0:00:07]}  Rb4 {[%clk 0:00:20]} 44. Rc7 {[%clk 0:00:06]}  Rxa4 {[%clk 0:00:18]} 45. d5 {[%clk 0:00:06]}  Kh6 {[%clk 0:00:16]} 46. c5 {[%clk 0:00:06]}  Rc4 {[%clk 0:00:12]} 47. c6 {[%clk 0:00:05]}  Be5 {[%clk 0:00:12]} 48. Rd7 {[%clk 0:00:05]}  Rd4 {[%clk 0:00:11]} 49. Kg1 {[%clk 0:00:02]}  Rc4 {[%clk 0:00:10]} 50. Kg2 {[%clk 0:00:02]}  Kg5 {[%clk 0:00:11]} 51. Kf3 {[%clk 0:00:02]}  Kf5 {[%clk 0:00:12]} 52. Rf7+ {[%clk 0:00:02]}  Kg5 {[%clk 0:00:12]} 53. Re7 {[%clk 0:00:02]}  Bf4 {[%clk 0:00:11]} 54. Rf7 {[%clk 0:00:02]}  h4 {[%clk 0:00:11]} 55. Rxf4 {[%clk 0:00:01]}  Rxf4+ {[%clk 0:00:10]} 56. Ke3 {[%clk 0:00:02]}  h3 {[%clk 0:00:08]} 57. c7 {[%clk 0:00:01]}  Rf8 {[%clk 0:00:09]} 58. d6 {[%clk 0:00:02]}  h2 {[%clk 0:00:10]} 59. d7 {[%clk 0:00:02]}  h1=Q {[%clk 0:00:11]} 60. d8=Q+ {[%clk 0:00:03]}  Rxd8 {[%clk 0:00:07]} 61. cxd8=Q+ {[%clk 0:00:04]}  Kh5 {[%clk 0:00:07]} 62. Qa5+ {[%clk 0:00:04]}  g5 {[%clk 0:00:07]} 63. Qd8 {[%clk 0:00:02]}  Qh3+ {[%clk 0:00:08]} 64. Kf2 {[%clk 0:00:03]}  Qf5+ {[%clk 0:00:07]} 65. Kg2 {[%clk 0:00:03]}  Qe4+ {[%clk 0:00:08]} 66. Kf2 {[%clk 0:00:04]}  Qf4+ {[%clk 0:00:08]} 67. Kg2 {[%clk 0:00:04]}  Kg4 {[%clk 0:00:09]} 68. Qd7+ {[%clk 0:00:04]}  Qf5 {[%clk 0:00:09]} 69. Qxf5+ {[%clk 0:00:04]}  Kxf5 {[%clk 0:00:09]} 70. Kf3 {[%clk 0:00:05]}  g4+ {[%clk 0:00:08]} 71. Kg3 {[%clk 0:00:06]}  Kg5 {[%clk 0:00:09]} 72. Kg2 {[%clk 0:00:06]}  Kf5 {[%clk 0:00:10]} 73. Kg3 {[%clk 0:00:07]}  Kg5 {[%clk 0:00:11]} 74. Kg2 {[%clk 0:00:07]}  Kf5 {[%clk 0:00:12]} 75. Kg3 {[%clk 0:00:08]} 1/2-1/2

[Event "November 21 Early 2023"]
[Site "https://www.chess.com"]
[Date "2023.11.21"]
[Round "8"]
[White "Viskelis, Darius"]
[Black "Osmak, Yuliia"]
[Result "1-0"]
[Board "132"]
[TimeControl "180+1"]
[WhiteFideId "12800830"]
[BlackFideId "14101602"]
[WhiteElo "1859"]
[BlackElo "2303"]
[WhiteTeam "LTU"]
[BlackTeam "UKR"]
[WhiteClock "0:00:15"]
[BlackClock "0:00:08"]

1. e4 {[%clk 0:02:53]}  c5 {[%clk 0:02:59]} 2. Nf3 {[%clk 0:02:53]}  Nc6 {[%clk 0:02:59]} 3. Bb5 {[%clk 0:02:53]}  g6 {[%clk 0:02:59]} 4. O-O {[%clk 0:02:53]}  Bg7 {[%clk 0:02:58]} 5. Re1 {[%clk 0:02:51]}  e5 {[%clk 0:02:57]} 6. c3 {[%clk 0:02:48]}  Nge7 {[%clk 0:02:57]} 7. d4 {[%clk 0:02:47]}  cxd4 {[%clk 0:02:56]} 8. cxd4 {[%clk 0:02:47]}  Nxd4 {[%clk 0:02:54]} 9. Nxd4 {[%clk 0:02:44]}  exd4 {[%clk 0:02:55]} 10. e5 {[%clk 0:02:44]}  Nc6 {[%clk 0:02:52]} 11. Bf4 {[%clk 0:02:43]}  O-O {[%clk 0:02:51]} 12. Nd2 {[%clk 0:02:40]}  a6 {[%clk 0:02:47]} 13. Bc4 {[%clk 0:02:36]}  b5 {[%clk 0:02:46]} 14. Bd5 {[%clk 0:02:37]}  Bb7 {[%clk 0:02:36]} 15. Qf3 {[%clk 0:02:37]}  Qb6 {[%clk 0:02:30]} 16. b4 {[%clk 0:02:29]}  Nd8 {[%clk 0:02:23]} 17. Bxb7 {[%clk 0:02:23]}  Qxb7 {[%clk 0:02:24]} 18. Ne4 {[%clk 0:02:23]}  Kh8 {[%clk 0:02:20]} 19. Qh3 {[%clk 0:02:06]}  Ne6 {[%clk 0:02:16]} 20. Bh6 {[%clk 0:02:02]}  Bxe5 {[%clk 0:01:54]} 21. Bxf8 {[%clk 0:01:42]}  Rxf8 {[%clk 0:01:55]} 22. Nc5 {[%clk 0:01:41]}  Qd5 {[%clk 0:01:47]} 23. Rxe5 {[%clk 0:01:37]}  Qxe5 {[%clk 0:01:46]} 24. Nxd7 {[%clk 0:01:37]}  Qe2 {[%clk 0:01:37]} 25. Nxf8 {[%clk 0:01:30]}  Nxf8 {[%clk 0:01:38]} 26. Qf3 {[%clk 0:01:24]}  Qb2 {[%clk 0:01:17]} 27. Rd1 {[%clk 0:01:19]}  Kg7 {[%clk 0:01:16]} 28. a3 {[%clk 0:01:00]}  Ne6 {[%clk 0:01:13]} 29. h4 {[%clk 0:00:59]}  h5 {[%clk 0:01:12]} 30. g3 {[%clk 0:00:59]}  Qc2 {[%clk 0:01:07]} 31. Kg2 {[%clk 0:00:55]}  Qb2 {[%clk 0:01:05]} 32. Qd3 {[%clk 0:00:54]}  Qa2 {[%clk 0:01:02]} 33. Rd2 {[%clk 0:00:50]}  Qd5+ {[%clk 0:01:00]} 34. Qf3 {[%clk 0:00:49]}  Qc4 {[%clk 0:00:58]} 35. Qe4 {[%clk 0:00:42]}  Qc1 {[%clk 0:00:51]} 36. Rc2 {[%clk 0:00:36]}  Qb1 {[%clk 0:00:43]} 37. Qe5+ {[%clk 0:00:33]}  f6 {[%clk 0:00:33]} 38. Qe2 {[%clk 0:00:25]}  Qb3 {[%clk 0:00:29]} 39. Rc6 {[%clk 0:00:20]}  Kf7 {[%clk 0:00:23]} 40. Rxa6 {[%clk 0:00:17]}  d3 {[%clk 0:00:23]} 41. Ra7+ {[%clk 0:00:16]}  Kg8 {[%clk 0:00:20]} 42. Qe4 {[%clk 0:00:16]}  Nf8 {[%clk 0:00:17]} 43. Qe7 {[%clk 0:00:16]}  Qd5+ {[%clk 0:00:08]} 44. Kh2 {[%clk 0:00:15]} 1-0